bitfinex/quotes_ETHUSD_20220212
["timestamp","ask_amount","ask_price","bid_price","bid_amount"]
[1644683214544,0.73965767,2910.3,2910.2,0.01018832]
[1644683214943,0.73965767,2910.3,2909.5,1.0]
[1644683214944,0.1718,2910.2,2909.5,1.0]
[1644683215143,0.73965767,2910.3,2909.5,1.0]
[1644683215346,0.73965767,2910.3,2909.4,0.04076305]
[1644683215548,0.1718,2910.2,2909.4,0.04076305]
[1644683215947,0.1718,2910.2,2909.4,1.0]
[1644683216259,0.1718,2910.2,2909.7,0.0101887]
[1644683216516,0.1718,2910.2,2909.2,0.04076093]
[1644683216517,0.00879078,2909.5,2909.2,0.04076093]
[1644683217417,0.00879078,2909.5,2908.6,0.00409023]
[1644683218115,2.80879078,2909.5,2908.6,0.00409023]
[1644683220268,2.80879078,2909.5,2908.7,0.495]
[1644683220456,2.80879078,2909.5,2908.8,20.10409023]
[1644683220657,2.80879078,2909.5,2909.1,6.19]
[1644683221055,2.80879078,2909.5,2909.2,1.0]
[1644683221257,2.80879078,2909.5,2909.3,0.495]
[1644683222259,9.078e-05,2909.5,2909.3,0.495]
[1644683222462,0.27639994,2910.9,2909.4,13.56315383]
[1644683222463,0.01018614,2910.1,2909.4,13.56315383]
[1644683222661,0.01018614,2910.1,2909.8,6.19]
[1644683222860,0.01018614,2910.1,2909.9,0.495]
[1644683223061,0.01018614,2910.1,2909.9,1.495]
[1644683223359,0.13819997,2910.9,2909.9,1.495]
[1644683223560,0.01018741,2910.1,2910.0,0.1717]
[1644683223762,0.01018741,2910.1,2910.0,0.495]
[1644683223993,0.01018741,2910.1,2910.0,0.795]
[1644683224394,0.01018741,2910.1,2910.0,1.095]
[1644683224597,0.30979997,2910.9,2910.0,1.095]
[1644683224797,0.01018734,2910.2,2910.0,1.095]
[1644683225799,0.13819997,2910.9,2910.0,1.095]
[1644683226000,0.01018727,2910.2,2910.0,1.095]
[1644683226799,0.13819997,2910.9,2910.0,1.095]
[1644683226998,1.37417454,2910.8,2910.0,1.095]
[1644683227200,0.01018727,2910.2,2910.0,1.095]
[1644683228046,0.30999997,2910.9,2910.0,1.095]
[1644683228250,0.00612436,2910.2,2910.0,1.095]
[1644683228649,0.00612436,2910.2,2910.1,20.17314421]
[1644683228650,2.436e-05,2910.2,2910.1,20.17314421]
[1644683228850,2.436e-05,2910.2,2910.1,21.66814421]
[1644683229048,2.436e-05,2910.2,2910.1,21.83994421]
[1644683229448,1.39953271,2911.0,2910.1,21.83994421]
[1644683229648,1.39953271,2911.0,2910.3,0.85917]
[1644683229853,1.39953271,2911.0,2910.4,0.495]
[1644683230052,1.39953271,2911.0,2910.4,0.795]
[1644683230654,0.00611913,2910.8,2910.4,0.495]
[1644683231695,1.39953271,2911.0,2910.4,0.495]
[1644683231898,0.0056104,2910.7,2910.4,0.495]
[1644683232496,0.0056104,2910.7,2910.5,3.3519492]
[1644683232696,0.0056104,2910.7,2910.6,0.495]
[1644683232898,1.39953271,2911.0,2910.6,0.495]
[1644683233298,1.39953271,2911.0,2910.7,3.36645028]
[1644683233501,1.39953271,2911.0,2910.8,0.495]
[1644683233700,1.39953271,2911.0,2910.9,3.58039906]
[1644683234100,1.39953271,2911.0,2910.9,4.07539906]
[1644683234300,1.39953271,2911.0,2910.9,5.07539906]
[1644683236252,1.39953271,2911.0,2910.9,25.17539906]
[1644683236253,3.271e-05,2911.0,2910.9,25.17539906]
[1644683236453,0.1716,2912.0,2911.3,0.00093881]
[1644683236652,0.1716,2912.2,2911.4,0.495]
[1644683236853,0.03830493,2912.3,2911.4,0.495]
[1644683237054,0.1716,2912.2,2911.4,0.495]
[1644683237251,0.1716,2912.2,2911.4,0.795]
[1644683237852,0.1716,2912.3,2911.4,0.795]
[1644683238053,0.00957908,2911.9,2911.4,0.795]
[1644683238452,0.00957908,2911.9,2911.5,3.30100896]
[1644683238651,0.00957908,2911.9,2911.6,0.495]
[1644683238852,0.1716,2912.3,2911.7,3.28008607]
[1644683239097,0.1716,2912.3,2911.8,20.1]
[1644683239301,0.20991059,2912.3,2911.9,1.0]
[1644683239500,0.20991059,2912.3,2912.0,0.495]
[1644683239902,0.20991059,2912.3,2912.0,1.35367]
[1644683240099,0.1716,2912.3,2912.0,1.35367]
[1644683240603,0.18119584,2912.3,2912.0,1.35367]
[1644683240802,0.00959584,2912.3,2912.0,1.35367]
[1644683241402,0.1716,2912.8,2912.0,1.35367]
[1644683241603,0.00959584,2912.3,2912.0,1.35367]
[1644683242003,0.00959584,2912.3,2912.0,1.65367]
[1644683242210,0.00959584,2912.3,2912.0,1.95367]
[1644683242404,0.00959584,2912.3,2912.0,4.75367]
[1644683242607,0.1716,2912.9,2912.0,4.15367]
[1644683242856,0.00959584,2912.3,2912.0,4.15367]
[1644683243057,0.00959584,2912.3,2912.0,3.295]
[1644683243656,0.70584295,2912.6,2912.0,3.295]
[1644683243858,0.87744295,2912.6,2912.0,3.295]
[1644683244060,0.00959385,2912.3,2912.0,3.295]
[1644683244862,0.1716,2912.6,2912.0,3.295]
[1644683245363,0.00959385,2912.3,2912.0,3.295]
[1644683246160,1.01231065,2912.6,2912.0,3.295]
[1644683246360,0.00959385,2912.3,2912.0,3.295]
[1644683247401,0.1716,2912.2,2912.0,3.295]
[1644683247595,0.65270885,2912.5,2912.0,3.295]
[1644683247596,0.00959405,2912.3,2912.0,3.295]
[1644683247996,0.00959405,2912.3,2912.0,2.8]
[1644683248197,0.83807996,2912.1,2912.0,2.8]
[1644683248396,1.00967996,2912.1,2912.0,2.8]
[1644683249798,1.00967996,2912.1,2912.0,0.45977145]
[1644683249799,3.05085937,2912.1,2912.0,0.45977145]
[1644683250002,2.39815052,2912.1,2912.0,0.45977145]
[1644683250654,3.05085937,2912.1,2912.0,0.45977145]
[1644683251052,2.39815052,2912.1,2912.0,0.45977145]
[1644683251856,1.56007056,2912.1,2912.0,0.45977145]
[1644683252255,1.38847056,2912.1,2912.0,0.45977145]
[1644683253456,0.1716,2912.9,2911.7,0.495]
[1644683253459,0.1716,2912.6,2911.7,0.495]
[1644683253655,0.00959417,2912.2,2911.7,0.495]
[1644683253855,1.36819581,2912.1,2911.7,0.495]
[1644683254097,1.36819581,2912.1,2911.7,0.795]
[1644683254698,0.00958272,2912.0,2911.7,0.795]
[1644683255703,1.70425957,2913.0,2911.7,0.795]
[1644683255903,0.03832541,2912.4,2912.0,0.85879]
[1644683256105,1.36838691,2912.3,2912.0,1.15879]
[1644683256307,1.36838691,2912.3,2912.0,1.45879]
[1644683256506,0.10090297,2911.8,2911.7,1.495]
[1644683256705,0.10090297,2911.8,2911.7,0.495]
[1644683258152,0.10090297,2911.8,2911.7,0.795]
[1644683261500,0.10090297,2911.8,2911.3,0.49593881]
[1644683261700,0.10090297,2911.8,2911.3,0.00093881]
[1644683263007,1.34270234,2911.7,2911.3,0.00093881]
[1644683263204,1.51430234,2911.7,2911.3,0.00093881]
[1644683263398,1.34270234,2911.6,2911.3,0.50093881]
[1644683263601,0.1716,2911.5,2911.3,0.50093881]
[1644683264000,0.00927011,2911.7,2911.3,0.50093881]
[1644683264001,1.34651259,2911.4,2911.3,0.50093881]
[1644683264399,1.35578289,2911.5,2911.3,0.50093881]
[1644683264600,1.34651259,2911.4,2911.3,0.50093881]
[1644683266358,1.34651259,2911.4,2909.8,8.22893154]
[1644683266359,7.3,2911.3,2909.8,2.22292728]
[1644683266659,7.3,2911.3,2909.9,0.09249882]
[1644683266660,6.28432269,2911.2,2909.9,0.09249882]
[1644683266864,0.86401151,2910.9,2909.9,0.09249882]
[1644683267060,1.34651259,2910.8,2909.9,0.09249882]
[1644683267263,0.1718,2910.7,2909.9,0.09249882]
[1644683267461,0.1718,2911.1,2909.9,0.09249882]
[1644683267661,0.1716,2911.2,2909.9,0.09249882]
[1644683267859,1.35755863,2911.1,2909.9,0.09249882]
[1644683268060,0.00907819,2910.4,2909.9,0.09249882]
[1644683268664,0.00907819,2910.4,2909.9,21.05177882]
[1644683268862,0.25,2911.3,2910.0,5.76958002]
[1644683269105,0.65270885,2911.9,2910.2,21.81834]
[1644683269106,1.38785726,2911.2,2910.2,21.81834]
[1644683269304,0.1716,2911.7,2910.3,5.50932187]
[1644683269504,1.38819482,2911.6,2910.4,3.38699882]
[1644683269705,1.38819482,2911.6,2910.5,4.09152577]
[1644683269902,1.38819482,2911.6,2910.6,0.09249882]
[1644683270106,1.38819482,2911.6,2910.7,0.58749882]
[1644683270308,1.38819482,2911.6,2910.8,0.56812851]
[1644683270509,0.00909655,2911.2,2910.9,3.4461178]
[1644683270711,0.00909655,2911.2,2911.0,0.86812275]
[1644683270913,0.00909655,2911.2,2911.1,3.78306145]
[1644683271111,0.00909655,2911.2,2911.1,4.57806145]
[1644683271311,0.00909655,2911.2,2911.1,5.57806145]
[1644683271510,0.10090297,2911.8,2911.1,5.57806145]
[1644683271717,0.00909642,2911.3,2911.2,0.07312275]
[1644683271911,0.00909642,2911.3,2911.2,4.40311788]
[1644683272212,0.00909642,2911.3,2911.2,5.19811788]
[1644683272611,0.10090297,2911.8,2911.2,5.19811788]
[1644683272855,0.10090297,2911.8,2911.3,0.07312275]
[1644683272856,0.00909529,2911.4,2911.3,0.07312275]
[1644683273055,0.00909529,2911.4,2911.3,3.98326036]
[1644683273459,0.00909529,2911.4,2911.3,4.98326036]
[1644683273855,0.10090297,2911.8,2911.3,4.98326036]
[1644683274056,0.00909381,2911.5,2911.4,0.93205275]
[1644683274255,0.00909381,2911.5,2911.4,6.35320029]
[1644683274555,0.00909381,2911.5,2911.4,3.02705275]
[1644683274958,0.10090297,2911.8,2911.4,3.02705275]
[1644683275157,0.00909369,2911.6,2911.4,0.495]
[1644683275365,1.39032904,2911.5,2911.4,0.495]
[1644683276360,0.10090297,2911.8,2911.4,0.495]
[1644683276361,0.00909381,2911.6,2911.4,0.495]
[1644683276612,0.00909381,2911.6,2911.3,0.859]
[1644683276613,1.39032904,2911.5,2911.3,0.859]
[1644683277512,1.39032904,2911.4,2911.3,0.859]
[1644683277712,1.39032904,2911.4,2911.0,2.45901]
[1644683277914,0.00909401,2911.5,2911.1,0.07312206]
[1644683278113,1.39105191,2911.4,2911.1,0.07312206]
[1644683278713,1.39105191,2911.3,2911.1,0.07312206]
[1644683278915,0.10090297,2911.8,2911.4,0.130011]
[1644683279115,1.39169694,2911.7,2911.4,0.130011]
[1644683279915,1.39169694,2911.6,2911.4,0.130011]
[1644683280115,1.39169694,2911.5,2911.4,0.130011]
[1644683280356,1.39169694,2911.7,2911.4,0.130011]
[1644683280557,1.39169694,2911.6,2911.4,0.130011]
[1644683280757,1.39169694,2911.5,2911.4,0.130011]
[1644683281160,1.39169694,2911.7,2911.4,0.130011]
[1644683281360,1.39169694,2911.6,2911.4,0.130011]
[1644683281558,1.39169694,2911.5,2911.4,0.130011]
[1644683281958,1.39169694,2911.7,2911.4,0.130011]
[1644683282156,0.10090297,2911.8,2911.4,0.130011]
[1644683282157,1.39169694,2911.6,2911.4,0.130011]
[1644683282358,1.39169694,2911.5,2911.4,0.130011]
[1644683282758,1.39169694,2911.7,2911.4,0.130011]
[1644683282958,1.39169694,2911.6,2911.4,0.130011]
[1644683283158,1.39169694,2911.5,2911.4,0.130011]
[1644683283358,1.39169694,2911.6,2911.4,0.130011]
[1644683283762,1.40137062,2911.6,2911.4,0.130011]
[1644683283999,1.39169694,2911.5,2911.4,0.130011]
[1644683284402,1.39169694,2911.5,2911.4,0.20313135]
[1644683284603,1.39169694,2911.5,2911.4,0.20313104]
[1644683284807,1.39169694,2911.5,2911.4,0.130011]
[1644683285705,1.39169694,2911.5,2911.4,0.20313151]
[1644683286606,1.39169694,2911.5,2911.4,4.04395271]
[1644683286808,1.39169694,2911.5,2911.4,5.34395271]
[1644683287004,0.10090297,2911.8,2911.4,5.34395271]
[1644683287205,1.39225091,2911.7,2911.5,1.07312051]
[1644683287406,0.00986007,2911.6,2911.5,1.3]
[1644683287761,1.40211098,2911.6,2911.5,1.37311399]
[1644683288355,1.39225091,2911.6,2911.5,1.37311399]
[1644683288556,0.10090297,2911.8,2911.5,1.37311399]
[1644683288557,1.39225091,2911.7,2911.5,1.37311399]
[1644683288756,1.39225091,2911.6,2911.5,0.3]
[1644683288958,1.39225091,2911.6,2911.5,0.07311873]
[1644683290559,1.39225091,2911.6,2911.5,1.07311873]
[1644683290957,0.10090297,2911.8,2911.5,1.07311873]
[1644683290958,1.40188584,2911.7,2911.5,1.07311873]
[1644683291160,0.00963493,2911.7,2911.6,0.07311873]
[1644683291609,1.4024023,2911.7,2911.6,0.07311873]
[1644683291809,1.39276737,2911.7,2911.6,0.07311873]
[1644683292608,1.39276737,2911.7,2911.4,0.625011]
[1644683292809,1.39276737,2911.7,2911.4,0.130011]
[1644683293008,0.11056055,2911.8,2911.4,0.130011]
[1644683293009,0.1716,2911.6,2911.4,0.130011]
[1644683293211,2.15603677,2911.8,2911.4,0.130011]
[1644683293212,1.39276737,2911.5,2911.4,0.130011]
[1644683293408,1.56436737,2911.5,2911.4,0.130011]
[1644683293609,1.39276737,2911.5,2911.4,0.130011]
[1644683293808,1.39276737,2911.6,2911.4,0.130011]
[1644683294608,1.40242513,2911.6,2911.4,0.130011]
[1644683295456,1.39276737,2911.6,2911.4,0.130011]
[1644683295658,0.1716,2911.5,2911.4,0.130011]
[1644683295857,1.56436737,2911.5,2911.4,0.130011]
[1644683296863,1.39276737,2911.5,2911.4,0.130011]
[1644683297058,0.1716,2911.5,2911.4,0.130011]
[1644683297257,1.39276737,2911.5,2911.4,0.130011]
[1644683297457,0.00965552,2911.6,2911.4,0.130011]
[1644683297659,1.39276737,2911.5,2911.4,0.130011]
[1644683297859,1.56436737,2911.5,2911.4,0.130011]
[1644683298258,1.39276737,2911.5,2911.4,0.130011]
[1644683298458,1.56436737,2911.5,2911.4,0.130011]
[1644683299108,1.39276737,2911.5,2911.4,0.20313106]
[1644683300813,0.00965577,2911.6,2911.4,0.20313106]
[1644683301013,0.00965577,2911.6,2911.4,0.130011]
[1644683301014,1.39276737,2911.5,2911.4,0.130011]
[1644683301216,1.39276737,2911.5,2911.4,0.20313153]
[1644683301418,1.39276737,2911.7,2911.4,0.130011]
[1644683301614,1.39276737,2911.6,2911.4,0.130011]
[1644683301814,1.39276737,2911.5,2911.4,0.130011]
[1644683302216,0.00965577,2911.6,2911.4,0.2031319]
[1644683302417,1.39276737,2911.5,2911.4,0.130011]
[1644683302615,1.39276737,2911.5,2911.4,0.20313087]
[1644683303755,0.00965568,2911.6,2911.4,0.20313087]
[1644683303956,1.39276737,2911.5,2911.4,0.130011]
[1644683304156,1.39276737,2911.5,2911.4,0.20312845]
[1644683304757,0.00965574,2911.6,2911.4,0.20312845]
[1644683305058,1.39276737,2911.5,2911.4,0.130011]
[1644683305256,0.00965568,2911.6,2911.4,0.20312758]
[1644683305459,0.00965568,2911.6,2911.5,0.07311658]
[1644683305859,1.42951541,2911.6,2911.4,0.130011]
[1644683306060,1.41985973,2911.5,2911.4,0.130011]
[1644683306259,1.41985973,2911.5,2911.4,0.2031312]
[1644683306706,0.1716,2911.7,2911.4,0.2031312]
[1644683306707,1.42951541,2911.6,2911.4,0.2031312]
[1644683306909,1.41985973,2911.5,2911.4,0.130011]
[1644683307113,1.41985973,2911.5,2911.4,0.20313129]
[1644683307311,0.00965568,2911.6,2911.4,0.130011]
[1644683307312,0.66236453,2911.6,2911.4,0.130011]
[1644683307512,1.41985973,2911.5,2911.4,0.130011]
[1644683307710,1.41985973,2911.5,2911.4,0.20313365]
[1644683307910,1.41985973,2911.5,2911.4,0.130011]
[1644683308110,1.41985973,2911.5,2911.4,0.20313351]
[1644683308912,1.41985973,2911.5,2911.4,0.19921877]
[1644683309111,0.00965574,2911.6,2911.4,0.19921877]
[1644683309411,1.41985973,2911.5,2911.4,0.12609626]
[1644683309610,1.41985973,2911.5,2911.4,0.1992185]
[1644683310011,0.1716,2911.5,2911.4,0.12609626]
[1644683310462,1.59145973,2911.5,2911.4,0.12609626]
[1644683311568,2.24416858,2911.5,2911.4,0.12609626]
[1644683311964,1.59210296,2911.5,2911.4,0.12609626]
[1644683312369,5.29894393,2911.5,2911.4,0.12609626]
[1644683312565,5.29187609,2911.5,2911.4,0.12609626]
[1644683312767,1.59210296,2911.5,2911.4,0.12609626]
[1644683312967,7.326,2911.4,2910.5,0.0482974]
[1644683313167,0.65640332,2910.9,2910.5,0.0482974]
[1644683313365,0.1716,2910.8,2910.6,0.07314318]
[1644683313665,1.42050296,2910.7,2909.9,0.00409023]
[1644683313867,1.42050296,2910.6,2910.0,0.07314626]
[1644683314105,2.1403392,2910.6,2910.5,0.00965793]
[1644683314304,1.42050296,2910.6,2910.5,0.00965793]
[1644683314704,1.42050296,2910.6,2909.8,0.00409023]
[1644683314705,0.65640332,2910.8,2909.8,0.00409023]
[1644683314907,0.1718,2910.5,2909.9,0.07314747]
[1644683315104,3.81131048,2910.7,2910.4,0.00965781]
[1644683315308,1.44566296,2910.6,2910.4,0.00965781]
[1644683315507,0.82800332,2910.8,2910.4,0.00965781]
[1644683315508,1.44566296,2910.5,2910.4,0.00965781]
[1644683315907,1.61726296,2910.5,2909.7,0.00409023]
[1644683316109,0.65640332,2910.8,2909.8,0.07315108]
[1644683316110,1.61746296,2910.4,2909.8,0.07315108]
[1644683316408,3.67979452,2910.7,2909.9,0.0386375]
[1644683316409,1.44566296,2910.3,2909.9,0.0386375]
[1644683316608,0.1718,2910.2,2909.9,0.0386375]
[1644683316908,1.44566296,2910.1,2910.0,0.07315171]
[1644683317109,0.87520442,2911.0,2910.0,0.07315171]
[1644683317110,0.1718,2910.9,2910.0,0.07315171]
[1644683317309,0.1718,2910.7,2909.7,0.00409023]
[1644683317513,1.44197177,2910.6,2909.9,0.00965848]
[1644683317762,1.44197177,2910.5,2909.9,0.00965848]
[1644683317952,0.1718,2910.9,2910.0,0.495]
[1644683318153,9.98230332,2911.2,2910.0,0.495]
[1644683318154,1.46283118,2910.8,2910.1,0.00409023]
[1644683318351,8.80480332,2911.2,2910.1,0.49909023]
[1644683318352,1.46283118,2910.7,2910.1,0.49909023]
[1644683318552,1.46283118,2910.6,2910.2,0.00409023]
[1644683318752,0.65640332,2911.3,2910.1,0.495]
[1644683318753,0.1716,2911.0,2910.3,0.00965799]
[1644683318952,0.1718,2910.8,2910.3,0.00965799]
[1644683319253,1.46280384,2910.7,2910.3,0.00965799]
[1644683319459,1.46280384,2910.6,2910.3,0.00965799]
[1644683319658,0.1716,2911.1,2910.2,0.00409023]
[1644683319659,0.1716,2911.1,2910.2,0.85932]
[1644683319858,1.46280693,2911.0,2910.4,0.00965793]
[1644683320061,0.1716,2910.9,2910.4,0.00965793]
[1644683320258,1.46280693,2910.8,2910.4,0.00965793]
[1644683320659,1.46280693,2910.7,2910.4,0.00965793]
[1644683320860,1.46280693,2910.6,2910.2,0.86341023]
[1644683321062,0.1716,2911.1,2910.5,0.00965781]
[1644683321261,1.46279084,2911.0,2910.5,0.00965781]
[1644683321707,1.63439084,2910.9,2910.5,0.00965781]
[1644683321906,1.46279084,2910.8,2910.5,0.00965781]
[1644683322107,1.46279084,2910.7,2910.5,0.495]
[1644683322309,0.76053296,2911.2,2910.5,0.5046581]
[1644683322509,1.4627097,2911.1,2910.5,0.5046581]
[1644683323310,1.4627097,2911.1,2910.6,0.85921]
[1644683323509,1.4627097,2911.0,2910.7,0.495]
[1644683323708,0.1716,2911.4,2910.7,0.795]
[1644683323909,1.46257795,2911.3,2910.7,0.795]
[1644683324109,1.46257795,2911.3,2910.7,1.795]
[1644683328181,1.46257795,2911.3,2910.7,0.795]
[1644683328380,1.46257795,2911.3,2910.7,1.795]
[1644683328580,1.46257795,2911.2,2910.7,0.495]
[1644683328782,1.46257795,2911.2,2910.5,0.01018853]
[1644683328783,1.03100716,2910.6,2910.5,0.01018853]
[1644683329008,1.03100716,2910.6,2910.5,0.31018853]
[1644683329208,1.03100716,2910.6,2910.5,0.01018853]
[1644683329411,2.49385705,2910.6,2910.2,0.00406996]
[1644683329607,2.49385705,2910.6,2910.4,0.01018778]
[1644683329608,2.24982868,2910.5,2910.4,0.01018778]
[1644683329810,2.42162868,2910.5,2910.4,0.01018778]
[1644683330413,2.42162868,2910.5,2909.5,0.00406996]
[1644683330617,1.46284989,2910.4,2909.5,0.00406996]
[1644683330817,1.46284989,2910.4,2910.3,0.01018793]
[1644683331115,1.63464989,2910.4,2910.3,0.01018793]
[1644683331715,1.63464989,2910.4,2909.3,0.00406996]
[1644683331916,1.63464989,2910.3,2910.2,0.00954127]
[1644683332117,1.46284989,2910.3,2910.2,0.00954127]
[1644683332516,1.46284989,2910.4,2910.2,0.00954127]
[1644683332780,1.46284989,2910.4,2909.3,0.00406996]
[1644683332979,1.46284989,2910.3,2909.5,0.85953]
[1644683333181,1.03100716,2910.6,2910.1,0.00954141]
[1644683333182,1.46284989,2910.2,2910.1,0.00954141]
[1644683333979,1.46284989,2910.2,2909.6,0.00406996]
[1644683334380,1.46284989,2910.2,2910.0,0.00954155]
[1644683334983,1.03100716,2910.6,2910.0,0.00954155]
[1644683335181,1.46300658,2910.5,2909.6,0.00406996]
[1644683335384,0.00139161,2910.0,2909.6,0.00406996]
[1644683336185,0.00139161,2910.0,2909.6,0.30406996]
[1644683336607,0.00139161,2910.0,2909.7,0.495]
[1644683336908,0.00139161,2910.0,2909.7,0.8045856]
[1644683337505,0.00139161,2910.0,2909.7,1.8045856]
[1644683337706,0.00139161,2910.0,2909.7,1.795]
[1644683338105,0.00139161,2910.0,2909.7,1.80458553]
[1644683338910,0.00139161,2910.0,2909.7,1.795]
[1644683339109,0.00139161,2910.0,2909.7,1.80458553]
[1644683339308,0.00139161,2910.0,2909.7,0.80458553]
[1644683340110,0.00139161,2910.0,2909.7,0.795]
[1644683340369,1.46283697,2910.5,2910.0,0.00010748]
[1644683340570,1.46283697,2910.5,2910.1,0.495]
[1644683340772,1.46283697,2910.5,2910.1,0.795]
[1644683341372,1.46283697,2910.5,2910.1,0.495]
[1644683341572,1.46283697,2910.5,2910.2,0.009582]
[1644683341772,1.46283697,2910.5,2910.3,0.495]
[1644683342773,1.46283697,2910.5,2910.3,0.50458186]
[1644683343375,1.46283697,2910.5,2910.3,0.00958186]
[1644683343581,1.46283697,2910.5,2910.0,0.00417744]
[1644683344018,5.14479899,2910.5,2910.3,0.00959996]
[1644683344210,5.49148054,2910.4,2910.3,0.00959996]
[1644683344413,1.46283697,2910.4,2910.3,0.00959996]
[1644683344810,1.46283697,2910.4,2910.0,0.00010748]
[1644683345010,0.1718,2910.3,2910.0,0.00010748]
[1644683345209,0.1718,2910.3,2910.2,0.00960003]
[1644683345415,1.46308709,2910.3,2910.2,0.00960003]
[1644683346117,1.46308709,2910.4,2910.0,0.00010748]
[1644683346315,0.1718,2910.2,2910.1,0.00931216]
[1644683346614,1.46308709,2910.3,2910.1,0.00931216]
[1644683346815,4.66620029,2910.6,2910.1,0.00931216]
[1644683346816,1.63488709,2910.2,2910.1,0.00931216]
[1644683347014,1.46308709,2910.2,2910.1,0.00931216]
[1644683347213,1.46308709,2910.2,2910.0,0.00010748]
[1644683347214,0.81332143,2910.2,2910.0,0.00010748]
[1644683347414,1.63488709,2910.1,2910.0,0.00010748]
[1644683347617,1.46308709,2910.1,2910.0,0.00941734]
[1644683347866,0.1718,2910.5,2910.0,0.00941734]
[1644683348066,0.1718,2910.5,2910.0,0.50441734]
[1644683348067,1.46297497,2910.4,2910.0,0.50441734]
[1644683348267,0.1718,2910.3,2910.0,0.50441734]
[1644683348468,1.03100716,2910.6,2910.0,0.49510748]
[1644683348672,1.03100716,2910.6,2910.1,0.00930979]
[1644683348673,1.4628537,2910.5,2910.1,0.00930979]
[1644683348868,1.4628537,2910.5,2910.2,0.495]
[1644683349266,1.4628537,2910.5,2910.2,0.795]
[1644683349468,1.03100716,2910.6,2910.2,0.795]
[1644683350071,1.03100716,2910.6,2910.2,0.80407079]
[1644683350869,1.03100716,2910.6,2910.2,0.795]
[1644683351070,1.03100716,2910.6,2910.3,0.00908065]
[1644683351273,1.03100716,2910.6,2910.4,0.495]
[1644683351907,1.03100716,2910.6,2910.4,1.095]
[1644683352307,1.03100716,2910.6,2910.4,2.10408053]
[1644683353308,1.03100716,2910.6,2910.4,2.095]
[1644683353507,1.03100716,2910.6,2910.4,2.10409111]
[1644683354308,1.03100716,2910.6,2910.4,1.10409111]
[1644683354509,1.03100716,2910.6,2910.4,2.095]
[1644683354709,1.03100716,2910.6,2910.4,2.10467676]
[1644683355764,1.03100716,2910.6,2910.5,20.1]
[1644683355966,1.03100716,2910.6,2910.5,20.595]
[1644683356165,1.03100716,2910.6,2910.5,21.595]
[1644683358269,2.49371782,2910.6,2910.5,21.595]
[1644683358469,1.03100716,2910.6,2910.5,21.595]
[1644683359027,0.1716,2911.4,2910.7,21.25915]
[1644683359220,1.46248054,2911.3,2911.2,6.19]
[1644683359516,0.1716,2911.4,2911.2,6.685]
[1644683359715,0.1716,2911.4,2911.2,8.285]
[1644683359914,0.1716,2911.4,2911.3,1.0]
[1644683360114,1.63396226,2911.4,2911.3,21.895]
[1644683360918,0.1716,2911.4,2911.3,21.895]
[1644683362621,0.1716,2911.4,2911.3,1.795]
[1644683364561,1.63409458,2911.4,2911.3,0.23500578]
[1644683364762,1.46249458,2911.4,2911.3,0.23500578]
[1644683364965,1.46249458,2911.4,2911.2,2.01758]
[1644683365363,0.1716,2911.9,2911.2,2.01758]
[1644683365562,0.00963968,2911.5,2911.3,0.495]
[1644683366162,0.00963968,2911.5,2911.3,0.795]
[1644683366611,0.1716,2912.2,2911.3,1.795]
[1644683366816,0.00963989,2911.5,2911.3,1.795]
[1644683367712,0.1716,2912.2,2911.3,1.795]
[1644683367912,1.46237824,2912.1,2911.3,1.795]
[1644683368110,0.00963991,2911.5,2911.3,1.795]
[1644683369012,0.1716,2912.2,2911.3,1.795]
[1644683369214,0.00901321,2911.5,2911.3,1.795]
[1644683370256,0.1716,2912.2,2911.3,1.795]
[1644683370464,0.00901321,2911.5,2911.3,1.795]
[1644683371265,0.1716,2912.2,2911.3,1.795]
[1644683371466,1.46230672,2912.1,2911.6,20.1]
[1644683371666,0.03620077,2912.3,2911.6,20.1]
[1644683371667,1.46230672,2912.0,2911.7,0.495]
[1644683371866,0.03620077,2912.3,2911.7,1.495]
[1644683372069,1.46224516,2912.2,2911.7,21.595]
[1644683372266,1.46224516,2912.2,2911.7,20.595]
[1644683372465,1.46224516,2912.2,2911.8,1.0]
[1644683372666,1.46224516,2912.1,2912.0,0.85881]
[1644683372867,1.46224516,2912.1,2911.9,0.495]
[1644683372868,1.47129694,2912.1,2911.8,0.495]
[1644683373065,1.46224516,2912.0,2911.8,0.495]
[1644683373267,1.46224516,2912.0,2911.8,0.795]
[1644683373666,1.46224516,2912.0,2911.8,1.095]
[1644683373865,1.46224516,2912.5,2911.8,1.095]
[1644683374109,0.00911039,2912.0,2911.8,1.095]
[1644683375009,0.1716,2912.7,2911.8,1.095]
[1644683375213,0.00910771,2912.0,2911.8,1.095]
[1644683376218,1.38195854,2912.8,2911.8,1.095]
[1644683376516,0.00910771,2912.0,2911.8,1.095]
[1644683377323,0.13819997,2913.3,2911.8,1.095]
[1644683377324,0.25,2913.1,2911.9,20.1]
[1644683377518,1.46200831,2913.0,2912.1,0.85871]
[1644683377759,0.02722578,2912.5,2912.2,0.495]
[1644683377959,1.46200831,2912.4,2912.2,0.495]
[1644683378762,1.46200831,2913.0,2912.2,0.495]
[1644683378962,1.6337006,2912.9,2912.2,1.495]
[1644683379261,1.4621006,2912.8,2912.2,1.495]
[1644683379464,1.4621006,2912.7,2912.2,1.495]
[1644683379664,1.4621006,2912.6,2912.2,1.495]
[1644683379866,1.4621006,2912.5,2912.2,1.495]
[1644683380064,1.4621006,2912.4,2912.2,1.495]
[1644683380266,0.1716,2913.0,2912.2,1.495]
[1644683380463,1.46209663,2912.9,2912.2,1.495]
[1644683380864,1.46209663,2912.9,2912.2,0.495]
[1644683381066,1.46209663,2912.8,2912.2,0.495]
[1644683381264,0.82800332,2913.0,2912.2,0.495]
[1644683381265,1.46820437,2912.7,2912.2,0.495]
[1644683381521,1.46209663,2912.6,2912.2,0.495]
[1644683382318,1.47177641,2912.6,2912.2,1.35369]
[1644683382719,1.47177641,2912.6,2912.3,0.6]
[1644683382918,1.46209663,2912.5,2912.3,0.6]
[1644683383321,1.46209663,2912.5,2912.3,0.3]
[1644683383521,0.00967978,2912.6,2912.3,0.3]
[1644683383722,1.46204436,2912.5,2912.3,3.27218264]
[1644683383922,1.46204436,2912.5,2912.4,1.0]
[1644683384124,1.46204436,2912.5,2912.4,1.3]
[1644683384322,1.46204436,2912.5,2912.4,0.3]
[1644683384523,1.46204436,2912.5,2912.2,0.83546499]
[1644683384725,1.46204436,2912.4,2912.2,1.33046499]